Workbook

Sheet Main
A1: Participating | D1: Ticket | M1: =COLUMN() -> 13 | Q1: 17 | R1: 18 | S1: 19 | T1: 20 | U1: 21 | V1: 22 | W1: 23 | X1: 24 | Y1: 25 | Z1: 26 | AA1: 27 | AB1: 28 | AC1: 29 | AD1: 30 | AF1: Codes | AG1: Cancel | AJ1: Collection
A2: Adl | B2: Chd | C2: Baby | D2: Muh Kullanıcı | E2: Muhasebe Tarih | F2: Zarf | G2: Accounting | H2: Ödeme Beklenen | I2: Sale Type | J2: SlipNo | K2: Slip Tutarı | L2: Free | M2: Tour Name | N2: Voucher | O2: Tour Date | P2: Guide Name | Q2: Customer Package | R2: Packet | S2: Colection Control | T2: Hotel | U2: Suppliers | V2: Sale Date | W2: Trans Region Name | X2: Remark | Y2: Lock | Z2: Ticket No | AA2: Tour Price | AB2: Discount | AC2: Ekstra Price | AD2: Net Amount | AE2: Collection | AG2: Adl | AH2: Chd | AI2: Baby | AJ2: Date | AK2: Process | AL2: Type | AM2: Receipt No | AN2: Curr | AO2: Exchange | AP2: Amount | AQ2: Remark
P3: Said Reda | Z3: 1000055 | AD3: 195
P4: Said Reda | Z4: 1000057 | AD4: 60
P5: Said Reda | Z5: 1000058 | AD5: 70
M6: Shopping | P6: Said Reda | Z6: 1000059 | AD6: 0
P7: Said Reda | Z7: 1000060 | AD7: 160
P8: Said Reda | Z8: 1000061 | AD8: 110
P9: Said Reda | Z9: 1000062 | AD9: 60
M10: Shopping | P10: Said Reda | Z10: 1000063 | AD10: 0
P11: Said Reda | Z11: 1000064 | AD11: 80
P12: Said Reda | Z12: 1000065 | AD12: 60
P13: Said Reda | Z13: 1000066 | AD13: 75
M14: Shopping | P14: Said Reda | Z14: 1000067 | AD14: 0
M15: Shopping | P15: Said Reda | Z15: 1000069 | AD15: 0
M16: Shopping | P16: Said Reda | Z16: 1000070 | AD16: 0
P17: Said Reda | Z17: 1000072 | AD17: 60
M18: Shopping | P18: Said Reda | Z18: 1000073 | AD18: 0
M19: Shopping | P19: Said Reda | Z19: 1000074 | AD19: 0
P20: Said Reda | Z20: 1000075 | AD20: 70
P21: Said Reda | Z21: 1000077 | AD21: 90
P22: Said Reda | Z22: 1000078 | AD22: 200
P23: Said Reda | Z23: 1000079 | AD23: 100
P24: Said Reda | Z24: 1000080 | AD24: 60
P25: Said Reda | Z25: 1000081 | AD25: 160
M26: Shopping | P26: Said Reda | Z26: 1000082 | AD26: 0
P27: Said Reda | Z27: 1000083 | AD27: 80
P28: Samir Fouad | Z28: 1000217 | AD28: 110
P29: Samir Fouad | Z29: 1000218 | AD29: 60
P30: Samir Fouad | Z30: 1000219 | AD30: 110
P31: Samir Fouad | Z31: 1000220 | AD31: 60
P32: Samir Fouad | Z32: 1000223 | AD32: 110
P33: Samir Fouad | Z33: 1000224 | AD33: 60
P34: Samir Fouad | Z34: 1000226 | AD34: 70
M35: 20 $ Discount | P35: Samir Fouad | Z35: 1000228 | AD35: 110
M36: 10 $ Discount | P36: Samir Fouad | Z36: 1000229 | AD36: 50
P37: Samir Fouad | Z37: 1000233 | AD37: 30
M38: 10 $ Discount | P38: Samir Fouad | Z38: 1000234 | AD38: 60
M39: 10 $ Discount | P39: Samir Fouad | Z39: 1000238 | AD39: 60
M40: Shopping | P40: Samir Fouad | Z40: 1000239 | AD40: 0
M41: 5 $ Discount | P41: Samir Fouad | Z41: 1000240 | AD41: 25
P42: Samir Fouad | Z42: 1000241 | AD42: 30
P43: Samir Fouad | Z43: 1000242 | AD43: 110
M44: Shopping | P44: Samir Fouad | Z44: 1000243 | AD44: 0
P45: Samir Fouad | Z45: 1000244 | AD45: 160
M46: Shopping | P46: Samir Fouad | Z46: 1000245 | AD46: 0
P47: Samir Fouad | Z47: 1000247 | AD47: 80
M48: Shopping | P48: Samir Fouad | Z48: 1000248 | AD48: 0
M49: Shopping | P49: Samir Fouad | Z49: 1000249 | AD49: 0
P50: Samir Fouad | Z50: 1000250 | AD50: 100
P51: Omar Nagy | Z51: 1000411 | AD51: 55
P52: Omar Nagy | Z52: 1000413 | AD52: 220
P53: Omar Nagy | Z53: 1000414 | AD53: 60
P54: Omar Nagy | Z54: 1000416 | AD54: 90
M55: 5 $ Discount | P55: Omar Nagy | Z55: 1000421 | AD55: 55
P56: Omar Nagy | Z56: 1000422 | AD56: 60
P57: Omar Nagy | Z57: 1000423 | AD57: 60
P58: Omar Nagy | Z58: 1000424 | AD58: 30
P59: Omar Nagy | Z59: 1000425 | AD59: 60
P60: Omar Nagy | Z60: 1000427 | AD60: 80
M61: Shopping | P61: Omar Nagy | Z61: 1000428 | AD61: 0
M62: Shopping | P62: Omar Nagy | Z62: 1000429 | AD62: 0
P63: Omar Nagy | Z63: 1000430 | AD63: 165
P64: Omar Nagy | Z64: 1000431 | AD64: 60
P65: Omar Nagy | Z65: 1000432 | AD65: 80
P66: Omar Nagy | Z66: 1000433 | AD66: 110
M67: Shopping | P67: Omar Nagy | Z67: 1000434 | AD67: 0
M68: 10 $ Discount | P68: Omar Nagy | Z68: 1000435 | AD68: 100
M69: Shopping | P69: Omar Nagy | Z69: 1000436 | AD69: 0
M70: Shopping | P70: Omar Nagy | Z70: 1000437 | AD70: 0
P71: Omar Nagy | Z71: 1000438 | AD71: 440
M72: 35$ Discount | P72: Omar Nagy | Z72: 1000439 | AD72: 115
P73: Samir Fouad | Z73: 1000575 | AD73: 40
M74: Shopping | P74: Samir Fouad | Z74: 1000588 | AD74: 0
P75: Samir Fouad | Z75: 1000701 | AD75: 60
P76: Samir Fouad | Z76: 1000702 | AD76: 80
M77: Shopping | P77: Samir Fouad | Z77: 1000703 | AD77: 0
P78: Samir Fouad | Z78: 1000704 | AD78: 80
P79: Samir Fouad | Z79: 1000706 | AD79: 200
P80: Samir Fouad | Z80: 1000707 | AD80: 70
M81: Shopping | P81: Samir Fouad | Z81: 1000708 | AD81: 0
P82: Samir Fouad | Z82: 1000709 | AD82: 80
P83: Samir Fouad | Z83: 1000710 | AD83: 35
M84: Shopping | P84: Samir Fouad | Z84: 1000711 | AD84: 0
P85: Samir Fouad | Z85: 1000712 | AD85: 40
M86: 5 $ Discount | P86: Samir Fouad | Z86: 1000713 | AD86: 208
M87: 5 $ Discount | P87: Samir Fouad | Z87: 1000714 | AD87: 95
M88: 5 $ Discount | P88: Samir Fouad | Z88: 1000715 | AD88: 30
M89: Shopping | P89: Samir Fouad | Z89: 1000716 | AD89: 0
P90: Samir Fouad | Z90: 1000717 | AD90: 55
P91: Samir Fouad | Z91: 1000718 | AD91: 95
M92: Shopping | P92: Samir Fouad | Z92: 1000719 | AD92: 0
P93: Samir Fouad | Z93: 1000720 | AD93: 90
P94: Samir Fouad | Z94: 1000721 | AD94: 110
M95: Shopping | P95: Samir Fouad | Z95: 1000723 | AD95: 0
M96: 10 $ Discount | P96: Samir Fouad | Z96: 1000724 | AD96: 110
M97: Shopping | P97: Samir Fouad | Z97: 1000725 | AD97: 0
P98: Samir Fouad | Z98: 1000726 | AD98: 80
M99: Shopping | P99: Samir Fouad | Z99: 1000727 | AD99: 0
M100: 15 $ Discount | P100: Samir Fouad | Z100: 1000728 | AD100: 90
M101: 5 $ Discount | P101: Samir Fouad | Z101: 1000729 | AD101: 30
P102: Samir Fouad | Z102: 1000730 | AD102: 110
M103: Shopping | P103: Samir Fouad | Z103: 1000731 | AD103: 0
M104: Shopping | P104: Samir Fouad | Z104: 1000732 | AD104: 0
P105: Samir Fouad | Z105: 1000733 | AD105: 160
P106: Samir Fouad | Z106: 1000734 | AD106: 160
P107: Samir Fouad | Z107: 1000735 | AD107: 110
P108: Samir Fouad | Z108: 1000736 | AD108: 160
P109: Samir Fouad | Z109: 1000737 | AD109: 110
P110: Samir Fouad | Z110: 1000738 | AD110: 160
P111: Samir Fouad | Z111: 1000739 | AD111: 110
P112: Samir Fouad | Z112: 1000740 | AD112: 160
P113: Samir Fouad | Z113: 1000741 | AD113: 240
M114: Shopping | P114: Samir Fouad | Z114: 1000742 | AD114: 0
P115: Samir Fouad | Z115: 1000743 | AD115: 240
P116: Samir Fouad | Z116: 1000744 | AD116: 186
P117: Samir Fouad | Z117: 1000745 | AD117: 106
M118: Shopping | P118: Samir Fouad | Z118: 1000746 | AD118: 0
M119: Shopping | P119: Samir Fouad | Z119: 1000748 | AD119: 0
M120: 10 $ Discount | P120: Samir Fouad | Z120: 1000749 | AD120: 70
M121: Shopping | P121: Samir Fouad | Z121: 1000750 | AD121: 0
P122: Samir Fouad | Z122: 1000801 | AD122: 110
M123: Shopping | P123: Samir Fouad | Z123: 1000802 | AD123: 0
P124: Samir Fouad | Z124: 1000804 | AD124: 70
P125: Samir Fouad | Z125: 1000805 | AD125: 80
P126: Samir Fouad | Z126: 1000806 | AD126: 80
M127: Shopping | P127: Samir Fouad | Z127: 1000807 | AD127: 0
M128: 10 $ Discount | P128: Samir Fouad | Z128: 1000808 | AD128: 60
M129: Shopping | P129: Samir Fouad | Z129: 1000809 | AD129: 0
M130: 20 $ Discount | P130: Samir Fouad | Z130: 1000810 | AD130: 140
P131: Samir Fouad | Z131: 1000811 | AD131: 80
P132: Samir Fouad | Z132: 1000812 | AD132: 55
M133: Shopping | P133: Samir Fouad | Z133: 1000814 | AD133: 0
M134: Shopping | P134: Samir Fouad | Z134: 1000815 | AD134: 0
P135: Samir Fouad | Z135: 1000816 | AD135: 160
P136: Samir Fouad | Z136: 1000817 | AD136: 80
M137: Shopping | P137: Samir Fouad | Z137: 1000818 | AD137: 0
P138: Samir Fouad | Z138: 1000819 | AD138: 160
P139: Samir Fouad | Z139: 1000820 | AD139: 120
P140: Samir Fouad | Z140: 1000821 | AD140: 160
P141: Samir Fouad | Z141: 1000822 | AD141: 120
M142: Shopping | P142: Samir Fouad | Z142: 1000823 | AD142: 0
M143: Shopping | P143: Samir Fouad | Z143: 1000824 | AD143: 0
M144: Shopping | P144: Samir Fouad | Z144: 1000825 | AD144: 0
P145: Samir Fouad | Z145: 1000826 | AD145: 70
M146: Shopping | P146: Samir Fouad | Z146: 1000827 | AD146: 0
P147: Samir Fouad | Z147: 1000828 | AD147: 120
P148: Samir Fouad | Z148: 1000829 | AD148: 120
M149: 20 $ Discount | P149: Samir Fouad | Z149: 1000831 | AD149: 200
P150: Samir Fouad | Z150: 1000832 | AD150: 320
M151: Shopping | P151: Samir Fouad | Z151: 1000833 | AD151: 0
M152: Shopping | P152: Samir Fouad | Z152: 1000834 | AD152: 0
P153: Samir Fouad | Z153: 1000835 | AD153: 75
P154: Samir Fouad | Z154: 1000836 | AD154: 55
M155: Shopping | P155: Samir Fouad | Z155: 1000837 | AD155: 0
P156: Samir Fouad | Z156: 1000838 | AD156: 60
M157: Shopping | P157: Samir Fouad | Z157: 1000839 | AD157: 0
M158: Shopping | P158: Samir Fouad | Z158: 1000840 | AD158: 0
M159: Shopping | P159: Samir Fouad | Z159: 1000841 | AD159: 0
M160: Shopping | P160: Samir Fouad | Z160: 1000843 | AD160: 0
M161: Shopping | P161: Samir Fouad | Z161: 1000844 | AD161: 0
P162: Samir Fouad | Z162: 1000845 | AD162: 30
M163: Shopping | P163: Samir Fouad | Z163: 1000846 | AD163: 0
P164: Samir Fouad | Z164: 1000847 | AD164: 80
M165: Shopping | P165: Samir Fouad | Z165: 1000848 | AD165: 0
M166: 10 $ Discount | P166: Samir Fouad | Z166: 1000849 | AD166: 100
M167: Shopping | P167: Samir Fouad | Z167: 1000850 | AD167: 0
P168: Samir Fouad | Z168: 1001001 | AD168: 110
M169: Shopping | P169: Samir Fouad | Z169: 1001002 | AD169: 0
P170: Samir Fouad | Z170: 1001003 | AD170: 110
P171: Samir Fouad | Z171: 1001004 | AD171: 60
M172: Shopping | P172: Samir Fouad | Z172: 1001005 | AD172: 0
P173: Samir Fouad | Z173: 1001006 | AD173: 110
M174: 10 $ Discount | P174: Samir Fouad | Z174: 1001007 | AD174: 100
M175: Shopping | P175: Samir Fouad | Z175: 1001008 | AD175: 0
P176: Samir Fouad | Z176: 1001009 | AD176: 110
M177: Shopping | P177: Samir Fouad | Z177: 1001010 | AD177: 0
M178: Shopping | P178: Samir Fouad | Z178: 1001011 | AD178: 0
P179: Samir Fouad | Z179: 1001012 | AD179: 55
M180: Shopping | P180: Samir Fouad | Z180: 1001013 | AD180: 0
M181: Shopping | P181: Samir Fouad | Z181: 1001014 | AD181: 0
M182: Shopping | P182: Samir Fouad | Z182: 1001015 | AD182: 0
M183: 10 $ Discount | P183: Samir Fouad | Z183: 1001016 | AD183: 110
P184: Samir Fouad | Z184: 1001017 | AD184: 110
M185: 10 $ Discount | P185: Samir Fouad | Z185: 1001018 | AD185: 100
M186: Shopping | P186: Samir Fouad | Z186: 1001019 | AD186: 0
M187: 10 $ Discount | P187: Samir Fouad | Z187: 1001020 | AD187: 100
M188: Shopping | P188: Samir Fouad | Z188: 1001021 | AD188: 0
P189: Samir Fouad | Z189: 1001022 | AD189: 99
M190: 35$ Discount | P190: Samir Fouad | Z190: 1001023 | AD190: 25
M191: Shopping | P191: Samir Fouad | Z191: 1001024 | AD191: 0
M192: Shopping | P192: Samir Fouad | Z192: 1001025 | AD192: 0
M193: 5 $ Discount | P193: Samir Fouad | Z193: 1001026 | AD193: 25
M194: 5 $ Discount | P194: Samir Fouad | Z194: 1001027 | AD194: 50
M195: 10 $ Discount | P195: Samir Fouad | Z195: 1001028 | AD195: 50
P196: Samir Fouad | Z196: 1001029 | AD196: 198
M197: 10 $ Discount | P197: Samir Fouad | Z197: 1001030 | AD197: 100
M198: 5 $ Discount | P198: Samir Fouad | Z198: 1001031 | AD198: 25
M199: 10 $ Discount | P199: Samir Fouad | Z199: 1001032 | AD199: 100
P200: Samir Fouad | Z200: 1001033 | AD200: 99
... 24 more rows

Sheet Samir Fouad
A1: =TODAY() -> 2021-01-21 | E1: 1 | I1: =C38+C79+C120+C161+C202+C243 -> 11296
A3: Company :Safari Company
A5: Guide Name: Samir Fouad
A7: No. | B7: Voucher no. | C7: Cash | E7: Remarks
A8: 1 | B8: 1000217 | C8: 110 | E8: 0
A9: 2 | B9: 1000218 | C9: 60 | E9: 0
A10: 3 | B10: 1000219 | C10: 110 | E10: 0
A11: 4 | B11: 1000220 | C11: 60 | E11: 0
A12: 5 | B12: 1000223 | C12: 110 | E12: 0
A13: 6 | B13: 1000224 | C13: 60 | E13: 0
A14: 7 | B14: 1000226 | C14: 70 | E14: 0
A15: 8 | B15: 1000228 | C15: 110 | E15: 20 $ Discount
A16: 9 | B16: 1000229 | C16: 50 | E16: 10 $ Discount
A17: 10 | B17: 1000233 | C17: 30 | E17: 0
A18: 11 | B18: 1000234 | C18: 60 | E18: 10 $ Discount
A19: 12 | B19: 1000238 | C19: 60 | E19: 10 $ Discount
A20: 13 | B20: 1000239 | C20: 0 | E20: Shopping
A21: 14 | B21: 1000240 | C21: 25 | E21: 5 $ Discount
A22: 15 | B22: 1000241 | C22: 30 | E22: 0
A23: 16 | B23: 1000242 | C23: 110 | E23: 0
A24: 17 | B24: 1000243 | C24: 0 | E24: Shopping
A25: 18 | B25: 1000244 | C25: 160 | E25: 0
A26: 19 | B26: 1000245 | C26: 0 | E26: Shopping
A27: 20 | B27: 1000247 | C27: 80 | E27: 0
A28: 21 | B28: 1000248 | C28: 0 | E28: Shopping
A29: 22 | B29: 1000249 | C29: 0 | E29: Shopping
A30: 23 | B30: 1000250 | C30: 100 | E30: 0
A31: 24 | B31: 1000575 | C31: 40 | E31: 0
A32: 25 | B32: 1000588 | C32: 0 | E32: Shopping
A33: 26 | B33: 1000701 | C33: 60 | E33: 0
A34: 27 | B34: 1000702 | C34: 80 | E34: 0
A35: 28 | B35: 1000703 | C35: 0 | E35: Shopping
A36: 29 | B36: 1000704 | C36: 80 | E36: 0
A37: 30 | B37: 1000706 | C37: 200 | E37: 0
A38: Total : | C38: =SUM(C8:C37) -> 1855
A40: Guide Signature :……………………………………………………………………………………………………..
A42: =TODAY() -> 2021-01-21 | E42: =E1+1 -> 2
A44: Company :Safari Company
A46: Guide Name: Samir Fouad
A48: No. | B48: Voucher no. | C48: Cash | E48: Remarks
A49: 31 | B49: 1000707 | C49: 70 | E49: 0
A50: 32 | B50: 1000708 | C50: 0 | E50: Shopping
A51: 33 | B51: 1000709 | C51: 80 | E51: 0
A52: 34 | B52: 1000710 | C52: 35 | E52: 0
A53: 35 | B53: 1000711 | C53: 0 | E53: Shopping
A54: 36 | B54: 1000712 | C54: 40 | E54: 0
A55: 37 | B55: 1000713 | C55: 208 | E55: 5 $ Discount
A56: 38 | B56: 1000714 | C56: 95 | E56: 5 $ Discount
A57: 39 | B57: 1000715 | C57: 30 | E57: 5 $ Discount
A58: 40 | B58: 1000716 | C58: 0 | E58: Shopping
A59: 41 | B59: 1000717 | C59: 55 | E59: 0
A60: 42 | B60: 1000718 | C60: 95 | E60: 0
A61: 43 | B61: 1000719 | C61: 0 | E61: Shopping
A62: 44 | B62: 1000720 | C62: 90 | E62: 0
A63: 45 | B63: 1000721 | C63: 110 | E63: 0
A64: 46 | B64: 1000723 | C64: 0 | E64: Shopping
A65: 47 | B65: 1000724 | C65: 110 | E65: 10 $ Discount
A66: 48 | B66: 1000725 | C66: 0 | E66: Shopping
A67: 49 | B67: 1000726 | C67: 80 | E67: 0
A68: 50 | B68: 1000727 | C68: 0 | E68: Shopping
A69: 51 | B69: 1000728 | C69: 90 | E69: 15 $ Discount
A70: 52 | B70: 1000729 | C70: 30 | E70: 5 $ Discount
A71: 53 | B71: 1000730 | C71: 110 | E71: 0
A72: 54 | B72: 1000731 | C72: 0 | E72: Shopping
A73: 55 | B73: 1000732 | C73: 0 | E73: Shopping
A74: 56 | B74: 1000733 | C74: 160 | E74: 0
A75: 57 | B75: 1000734 | C75: 160 | E75: 0
A76: 58 | B76: 1000735 | C76: 110 | E76: 0
A77: 59 | B77: 1000736 | C77: 160 | E77: 0
A78: 60 | B78: 1000737 | C78: 110 | E78: 0
A79: Total : | C79: =SUM(C49:C78) -> 2028
A81: Guide Signature :……………………………………………………………………………………………………..
A83: =TODAY() -> 2021-01-21 | E83: =E42+1 -> 3
A85: Company :Safari Company
A87: Guide Name: Samir Fouad
A89: No. | B89: Voucher no. | C89: Cash | E89: Remarks
A90: 61 | B90: 1000738 | C90: 160 | E90: 0
A91: 62 | B91: 1000739 | C91: 110 | E91: 0
A92: 63 | B92: 1000740 | C92: 160 | E92: 0
A93: 64 | B93: 1000741 | C93: 240 | E93: 0
A94: 65 | B94: 1000742 | C94: 0 | E94: Shopping
A95: 66 | B95: 1000743 | C95: 240 | E95: 0
A96: 67 | B96: 1000744 | C96: 186 | E96: 0
A97: 68 | B97: 1000745 | C97: 106 | E97: 0
A98: 69 | B98: 1000746 | C98: 0 | E98: Shopping
A99: 70 | B99: 1000748 | C99: 0 | E99: Shopping
A100: 71 | B100: 1000749 | C100: 70 | E100: 10 $ Discount
A101: 72 | B101: 1000750 | C101: 0 | E101: Shopping
A102: 73 | B102: 1000801 | C102: 110 | E102: 0
A103: 74 | B103: 1000802 | C103: 0 | E103: Shopping
A104: 75 | B104: 1000804 | C104: 70 | E104: 0
A105: 76 | B105: 1000805 | C105: 80 | E105: 0
A106: 77 | B106: 1000806 | C106: 80 | E106: 0
A107: 78 | B107: 1000807 | C107: 0 | E107: Shopping
A108: 79 | B108: 1000808 | C108: 60 | E108: 10 $ Discount
A109: 80 | B109: 1000809 | C109: 0 | E109: Shopping
A110: 81 | B110: 1000810 | C110: 140 | E110: 20 $ Discount
A111: 82 | B111: 1000811 | C111: 80 | E111: 0
A112: 83 | B112: 1000812 | C112: 55 | E112: 0
A113: 84 | B113: 1000814 | C113: 0 | E113: Shopping
A114: 85 | B114: 1000815 | C114: 0 | E114: Shopping
A115: 86 | B115: 1000816 | C115: 160 | E115: 0
A116: 87 | B116: 1000817 | C116: 80 | E116: 0
A117: 88 | B117: 1000818 | C117: 0 | E117: Shopping
A118: 89 | B118: 1000819 | C118: 160 | E118: 0
A119: 90 | B119: 1000820 | C119: 120 | E119: 0
A120: Total : | C120: =SUM(C90:C119) -> 2467
A122: Guide Signature :……………………………………………………………………………………………………..
A124: =TODAY() -> 2021-01-21 | E124: =E83+1 -> 4
A126: Company :Safari Company
A128: Guide Name: Samir Fouad
A130: No. | B130: Voucher no. | C130: Cash | E130: Remarks
A131: 91 | B131: 1000821 | C131: 160 | E131: 0
A132: 92 | B132: 1000822 | C132: 120 | E132: 0
A133: 93 | B133: 1000823 | C133: 0 | E133: Shopping
A134: 94 | B134: 1000824 | C134: 0 | E134: Shopping
A135: 95 | B135: 1000825 | C135: 0 | E135: Shopping
A136: 96 | B136: 1000826 | C136: 70 | E136: 0
A137: 97 | B137: 1000827 | C137: 0 | E137: Shopping
A138: 98 | B138: 1000828 | C138: 120 | E138: 0
A139: 99 | B139: 1000829 | C139: 120 | E139: 0
A140: 100 | B140: 1000831 | C140: 200 | E140: 20 $ Discount
A141: 101 | B141: 1000832 | C141: 320 | E141: 0
A142: 102 | B142: 1000833 | C142: 0 | E142: Shopping
A143: 103 | B143: 1000834 | C143: 0 | E143: Shopping
A144: 104 | B144: 1000835 | C144: 75 | E144: 0
A145: 105 | B145: 1000836 | C145: 55 | E145: 0
A146: 106 | B146: 1000837 | C146: 0 | E146: Shopping
A147: 107 | B147: 1000838 | C147: 60 | E147: 0
A148: 108 | B148: 1000839 | C148: 0 | E148: Shopping
A149: 109 | B149: 1000840 | C149: 0 | E149: Shopping
A150: 110 | B150: 1000841 | C150: 0 | E150: Shopping
A151: 111 | B151: 1000843 | C151: 0 | E151: Shopping
A152: 112 | B152: 1000844 | C152: 0 | E152: Shopping
A153: 113 | B153: 1000845 | C153: 30 | E153: 0
A154: 114 | B154: 1000846 | C154: 0 | E154: Shopping
A155: 115 | B155: 1000847 | C155: 80 | E155: 0
A156: 116 | B156: 1000848 | C156: 0 | E156: Shopping
A157: 117 | B157: 1000849 | C157: 100 | E157: 10 $ Discount
A158: 118 | B158: 1000850 | C158: 0 | E158: Shopping
A159: 119 | B159: 1001001 | C159: 110 | E159: 0
A160: 120 | B160: 1001002 | C160: 0 | E160: Shopping
A161: Total : | C161: =SUM(C131:C160) -> 1620
A163: Guide Signature :……………………………………………………………………………………………………..
A165: =TODAY() -> 2021-01-21 | E165: =E124+1 -> 5
A167: Company :Safari Company
A169: Guide Name: Samir Fouad
A171: No. | B171: Voucher no. | C171: Cash | E171: Remarks
A172: 121 | B172: 1001003 | C172: 110 | E172: 0
A173: 122 | B173: 1001004 | C173: 60 | E173: 0
A174: 123 | B174: 1001005 | C174: 0 | E174: Shopping
A175: 124 | B175: 1001006 | C175: 110 | E175: 0
A176: 125 | B176: 1001007 | C176: 100 | E176: 10 $ Discount
A177: 126 | B177: 1001008 | C177: 0 | E177: Shopping
A178: 127 | B178: 1001009 | C178: 110 | E178: 0
A179: 128 | B179: 1001010 | C179: 0 | E179: Shopping
A180: 129 | B180: 1001011 | C180: 0 | E180: Shopping
A181: 130 | B181: 1001012 | C181: 55 | E181: 0
A182: 131 | B182: 1001013 | C182: 0 | E182: Shopping
A183: 132 | B183: 1001014 | C183: 0 | E183: Shopping
A184: 133 | B184: 1001015 | C184: 0 | E184: Shopping
A185: 134 | B185: 1001016 | C185: 110 | E185: 10 $ Discount
A186: 135 | B186: 1001017 | C186: 110 | E186: 0
A187: 136 | B187: 1001018 | C187: 100 | E187: 10 $ Discount
A188: 137 | B188: 1001019 | C188: 0 | E188: Shopping
A189: 138 | B189: 1001020 | C189: 100 | E189: 10 $ Discount
A190: 139 | B190: 1001021 | C190: 0 | E190: Shopping
A191: 140 | B191: 1001022 | C191: 99 | E191: 0
A192: 141 | B192: 1001023 | C192: 25 | E192: 35$ Discount
A193: 142 | B193: 1001024 | C193: 0 | E193: Shopping
A194: 143 | B194: 1001025 | C194: 0 | E194: Shopping
A195: 144 | B195: 1001026 | C195: 25 | E195: 5 $ Discount
A196: 145 | B196: 1001027 | C196: 50 | E196: 5 $ Discount
A197: 146 | B197: 1001028 | C197: 50 | E197: 10 $ Discount
A198: 147 | B198: 1001029 | C198: 198 | E198: 0
A199: 148 | B199: 1001030 | C199: 100 | E199: 10 $ Discount
A200: 149 | B200: 1001031 | C200: 25 | E200: 5 $ Discount
A201: 150 | B201: 1001032 | C201: 100 | E201: 10 $ Discount
A202: Total : | C202: =SUM(C172:C201) -> 1637
A204: Guide Signature :……………………………………………………………………………………………………..
A206: =TODAY() -> 2021-01-21 | E206: =E165+1 -> 6
A208: Company :Safari Company
A210: Guide Name: Samir Fouad
A212: No. | B212: Voucher no. | C212: Cash | E212: Remarks
A213: 151 | B213: 1001033 | C213: 99 | E213: 0
A214: 152 | B214: 1001034 | C214: 0 | E214: Shopping
A215: 153 | B215: 1001035 | C215: 120 | E215: 0
A216: 154 | B216: 1001036 | C216: 220 | E216: 0
A217: 155 | B217: 1001037 | C217: 0 | E217: Shopping
A218: 156 | B218: 1001038 | C218: 110 | E218: 0
A219: 157 | B219: 1001039 | C219: 160 | E219: 0
A220: 158 | B220: 1001040 | C220: 0 | E220: Shopping
A221: 159 | B221: 1001041 | C221: 45 | E221: 0
A222: 160 | B222: 1001042 | C222: 120 | E222: 0
A223: 161 | B223: 1001043 | C223: 0 | E223: Shopping
A224: 162 | B224: 1001044 | C224: 60 | E224: 0
A225: 163 | B225: 1001045 | C225: 0 | E225: Shopping
A226: 164 | B226: 1001046 | C226: 160 | E226: 0
A227: 165 | B227: 1001047 | C227: 0 | E227: Shopping
A228: 166 | B228: 1001048 | C228: 80 | E228: 0
... 16 more rows

Sheet Omar Nagy
A1: =TODAY() -> 2021-01-21 | E1: 1
A3: Company :Safari Company
A5: Guide Name: Omar Nagy
A7: No. | B7: Voucher no. | C7: Cash | E7: Remarks
A8: =IF($B8="","",SUBTOTAL(3,$B$8:B8)) -> 1 | B8: 1000411 | C8: 55 | E8: 0
A9: =IF($B9="","",SUBTOTAL(3,$B$8:B9)) -> 2 | B9: 1000413 | C9: 220 | E9: 0
A10: 3 | B10: 1000414 | C10: 60 | E10: 0
A11: 4 | B11: 1000416 | C11: 90 | E11: 0
A12: 5 | B12: 1000421 | C12: 55 | E12: 5 $ Discount
A13: 6 | B13: 1000422 | C13: 60 | E13: 0
A14: 7 | B14: 1000423 | C14: 60 | E14: 0
A15: 8 | B15: 1000424 | C15: 30 | E15: 0
A16: 9 | B16: 1000425 | C16: 60 | E16: 0
A17: 10 | B17: 1000427 | C17: 80 | E17: 0
A18: 11 | B18: 1000428 | C18: 0 | E18: Shopping
A19: 12 | B19: 1000429 | C19: 0 | E19: Shopping
A20: 13 | B20: 1000430 | C20: 165 | E20: 0
A21: 14 | B21: 1000431 | C21: 60 | E21: 0
A22: 15 | B22: 1000432 | C22: 80 | E22: 0
A23: 16 | B23: 1000433 | C23: 110 | E23: 0
A24: 17 | B24: 1000434 | C24: 0 | E24: Shopping
A25: 18 | B25: 1000435 | C25: 100 | E25: 10 $ Discount
A26: 19 | B26: 1000436 | C26: 0 | E26: Shopping
A27: 20 | B27: 1000437 | C27: 0 | E27: Shopping
A28: 21 | B28: 1000438 | C28: 440 | E28: 0
A29: 22 | B29: 1000439 | C29: 115 | E29: 35$ Discount
A30: 23
A31: 24
A32: 25
A33: 26
A34: 27
A35: 28
A36: 29
A37: 30
A38: Total : | C38: =SUM(C8:C37) -> 1840
A40: Guide Signature :……………………………………………………………………………………………………..
A42: =TODAY() -> 2021-01-21 | E42: =E1+1 -> 2
A44: Company :Safari Company
A46: Guide Name: Omar Nagy
A48: No. | B48: Voucher no. | C48: Cash | E48: Remarks
A49: 31
A50: 32
A51: 33
A52: 34
A53: 35
A54: 36
A55: 37
A56: 38
A57: 39
A58: 40
A59: 41
A60: 42
A61: 43
A62: 44
A63: 45
A64: 46
A65: 47
A66: 48
A67: 49
A68: 50
A69: 51
A70: 52
A71: 53
A72: 54
A73: 55
A74: 56
A75: 57
A76: 58
A77: 59
A78: 60
A79: Total : | C79: =SUM(C49:C78) -> 0
A81: Guide Signature :……………………………………………………………………………………………………..
A83: =TODAY() -> 2021-01-21 | E83: =E42+1 -> 3
A85: Company :Safari Company
A87: Guide Name: Omar Nagy
A89: No. | B89: Voucher no. | C89: Cash | E89: Remarks
A90: 61
A91: 62
A92: 63
A93: 64
A94: 65
A95: 66
A96: 67
A97: 68
A98: 69
A99: 70
A100: 71
A101: 72
A102: 73
A103: 74
A104: 75
A105: 76
A106: 77
A107: 78
A108: 79
A109: 80
A110: 81
A111: 82
A112: 83
A113: 84
A114: 85
A115: 86
A116: 87
A117: 88
A118: 89
A119: 90
A120: Total : | C120: =SUM(C90:C119) -> 0
A122: Guide Signature :……………………………………………………………………………………………………..

Sheet Said Reda
A1: =TODAY() -> 2021-01-21 | E1: 1
A3: Company :Safari Company
A5: Guide Name: Said Reda
A7: No. | B7: Voucher no. | C7: Cash | E7: Remarks
A8: 1 | B8: 1000055 | C8: 195 | E8: 0
A9: 2 | B9: 1000057 | C9: 60 | E9: 0
A10: 3 | B10: 1000058 | C10: 70 | E10: 0
A11: 4 | B11: 1000059 | C11: 0 | E11: Shopping
A12: 5 | B12: 1000060 | C12: 160 | E12: 0
A13: 6 | B13: 1000061 | C13: 110 | E13: 0
A14: 7 | B14: 1000062 | C14: 60 | E14: 0
A15: 8 | B15: 1000063 | C15: 0 | E15: Shopping
A16: 9 | B16: 1000064 | C16: 80 | E16: 0
A17: 10 | B17: 1000065 | C17: 60 | E17: 0
A18: 11 | B18: 1000066 | C18: 75 | E18: 0
A19: 12 | B19: 1000067 | C19: 0 | E19: Shopping
A20: 13 | B20: 1000069 | C20: 0 | E20: Shopping
A21: 14 | B21: 1000070 | C21: 0 | E21: Shopping
A22: 15 | B22: 1000072 | C22: 60 | E22: 0
A23: 16 | B23: 1000073 | C23: 0 | E23: Shopping
A24: 17 | B24: 1000074 | C24: 0 | E24: Shopping
A25: 18 | B25: 1000075 | C25: 70 | E25: 0
A26: 19 | B26: 1000077 | C26: 90 | E26: 0
A27: 20 | B27: 1000078 | C27: 200 | E27: 0
A28: 21 | B28: 1000079 | C28: 100 | E28: 0
A29: 22 | B29: 1000080 | C29: 60 | E29: 0
A30: 23 | B30: 1000081 | C30: 160 | E30: 0
A31: 24 | B31: 1000082 | C31: 0 | E31: Shopping
A32: 25 | B32: 1000083 | C32: 80 | E32: 0
A33: 26
A34: 27
A35: 28
A36: 29
A37: 30
A38: Total : | C38: =SUM(C8:C37) -> 1690
A40: Guide Signature :……………………………………………………………………………………………………..
A42: =TODAY() -> 2021-01-21 | E42: =E1+1 -> 2
A44: Company :Safari Company
A46: Guide Name: Said Reda
A48: No. | B48: Voucher no. | C48: Cash | E48: Remarks
A49: 31
A50: 32
A51: 33
A52: 34
A53: 35
A54: 36
A55: 37
A56: 38
A57: 39
A58: 40
A59: 41
A60: 42
A61: 43
A62: 44
A63: 45
A64: 46
A65: 47
A66: 48
A67: 49
A68: 50
A69: 51
A70: 52
A71: 53
A72: 54
A73: 55
A74: 56
A75: 57
A76: 58
A77: 59
A78: 60
A79: Total : | C79: =SUM(C49:C78) -> 0
A81: Guide Signature :……………………………………………………………………………………………………..
A83: =TODAY() -> 2021-01-21 | E83: =E42+1 -> 3
A85: Company :Safari Company
A87: Guide Name: Said Reda
A89: No. | B89: Voucher no. | C89: Cash | E89: Remarks
A90: 61
A91: 62
A92: 63
A93: 64
A94: 65
A95: 66
A96: 67
A97: 68
A98: 69
A99: 70
A100: 71
A101: 72
A102: 73
A103: 74
A104: 75
A105: 76
A106: 77
A107: 78
A108: 79
A109: 80
A110: 81
A111: 82
A112: 83
A113: 84
A114: 85
A115: 86
A116: 87
A117: 88
A118: 89
A119: 90
A120: Total : | C120: =SUM(C90:C119) -> 0
A122: Guide Signature :……………………………………………………………………………………………………..
